Cogmind - Beta 15 *** ADVENTURER MODE // 2025.07.07 @ 07:27:10 Player: Roach K Result: Destroyed by G-50 Soldier with Heavy Laser Performance ------------- Evolutions (4) 2000 Regions Visited (9) 1800 Robots Destroyed (50) 250 Value Destroyed (1824) 1824 Prototype IDs (1) 20 Alien Tech Used (0) 0 Bonus (0) 0 TOTAL SCORE: 5894 Bonus ------- None Cogmind --------- Core Integrity 0/850 Matter 139/300 Energy 97/100 System Corruption 10% Temperature Cool (9) Movement Core (150) Ox2 Location -6/Factory Parts ------- > --- POWER (3) -------- (None) > --- PROPULSION (4) --- (None) > --- UTILITY (3) ------ (None) > --- WEAPON (5) ------- Power Maul Power Maul Power Maul > --- INVENTORY (5) ---- EM Shield Peak State ------------ > --- POWER ------------ Nuclear Core Fusion Compressor Fusion Compressor > --- PROPULSION ------- Armored Treads Advanced Treads Advanced Treads Medium Treads > --- UTILITY ---------- Advanced Heat Sink Improved Weapon Cycler Improved Weapon Cycler > --- WEAPON ----------- Arc Projector Heavy Particle Gun Gatling Laser Phase Cannon Heavy Machine Gun > --- INVENTORY -------- Fusion Compressor Advanced Heat Sink [Rating: 66] Favorites ----------- Power Nuclear Core Engine Hybrid Deuterium Engine Power Core Nuclear Core Propulsion Advanced Treads Treads Advanced Treads Leg Aluminum Leg Flight Unit Flight Unit Utility Improved Weapon Cycler Device Improved Weapon Cycler Protection Power Shielding Weapon Heavy Particle Gun Energy Gun Heavy Particle Gun Energy Cannon Improved EM Pulse Cannon Ballistic Gun Heavy Machine Gun Ballistic Cannon Assault Cannon Launcher Grenade Launcher Impact Weapon Power Maul Build | -11 -10 -9 -8 -7 -7 -7 -6 -6 -6 ------- Run | Yrd Mat Mat Mat Fac Low Low Fac Was Fac Slots Evolved 8 | . . 2 2 2 . . 2 . . Power 2 | . . . 1 . . . 1 . . Propulsion 2 | . . 2 . . . . . . . Utility 1 | . . . 1 . . . . . . Weapon 3 | . . . . 2 . . 1 . . Parts Attached 52 | 5 6 7 11 7 1 . 8 . 7 Power 10 | 1 1 . 3 1 . . 3 . 1 Engine 6 | 1 1 . 2 1 . . 1 . . Core 4 | . . . 1 . . . 2 . 1 Reactor . | . . . . . . . . . . Propulsion 15 | 2 2 3 5 1 . . . . 2 Treads 9 | . . 3 5 1 . . . . . Leg 3 | 2 1 . . . . . . . . Wheel . | . . . . . . . . . . Hover . | . . . . . . . . . . Flight 3 | . 1 . . . . . . . 2 Utility 9 | . 2 1 1 2 1 . 2 . . Device 6 | . . . 1 2 1 . 2 . . Storage . | . . . . . . . . . . Processor . | . . . . . . . . . . Hackware . | . . . . . . . . . . Protection 3 | . 2 1 . . . . . . . Artifact . | . . . . . . . . . . Weapon 18 | 2 1 3 2 3 . . 3 . 4 Energy Gun 6 | 2 . . 1 2 . . 1 . . Energy Cannon 5 | . . 2 . 1 . . 1 . 1 Ballistic Gun 2 | . . 1 . . . . 1 . . Ballistic Cannon 1 | . . . 1 . . . . . . Launcher 1 | . 1 . . . . . . . . Special Weapon . | . . . . . . . . . . Impact Weapon 3 | . . . . . . . . . 3 Slashing Weapon . | . . . . . . . . . . Piercing Weapon . | . . . . . . . . . . Special Melee Weapon . | . . . . . . . . . . Unidentified Prototypes 1 | . . . 1 . . . . . . Parts Lost 15 | . . . 1 . 2 . 2 5 5 Power 3 | . . . 1 . . . . 1 1 Propulsion 5 | . . . . . . . 1 2 2 Utility 4 | . . . . . 1 . . 1 2 Weapon 3 | . . . . . 1 . 1 1 . Highest Loss Streak 5 | . . . 1 . 2 . 2 4 5 To Critical Strikes . | . . . . . . . . . . Average Backups 1 | 2 3 3 2 1 1 . 1 2 2 Power . | . . . . . . . . 1 . Propulsion . | 1 1 . 1 . . . . . . Utility . | . . . . . . . . 1 . Weapon . | . 1 1 . . . . . . . Tool/Special . | . . . . . . . . . . Unused Backups 7 | . 2 1 2 1 . . . . 1 Power . | . . . . . . . . . . Propulsion 3 | . 2 . . 1 . . . . . Utility 1 | . . . . . . . . . 1 Weapon 2 | . . 1 1 . . . . . . Tool/Special 1 | . . . 1 . . . . . . Average Slot Usage (%) 86 | . 61 63 89 97 95 92 92 66 15 Engine 8 | . 12 11 14 7 7 7 6 . . Core 6 | . . . 1 7 7 7 11 15 . Treads 25 | . . 19 32 30 28 30 24 15 . Leg 1 | . 23 . . . . . . . . Device 14 | . . . 6 9 21 23 20 18 6 Protection 5 | . 1 12 18 12 . . . . . Energy Gun 16 | . 13 . 4 20 23 23 21 6 . Energy Cannon 4 | . . 14 4 5 5 . 1 4 1 Ballistic Gun 1 | . . 2 2 . . . 4 4 . Ballistic Cannon 1 | . . . 6 1 . . . . . Peak Build Rating 66 | 5 5 11 30 50 50 47 66 58 22 Average Rating 37 | 3 4 7 22 40 47 47 58 44 12 On Entrance 26 | . 5 3 11 30 50 47 47 58 12 Naked Turns 19 | . 18 . . . . . . . 1 Heaviest Build 51 | 7 8 16 30 40 36 28 51 40 14 Greatest Support 92 | 20 20 60 88 92 92 92 92 48 12 Greatest Overweight (x) 4 | . . 2 . . . . . 4 4 Average Overweight (x) . | . . . . . . . . . . Largest Inventory Capacity 5 | 5 5 5 5 5 5 5 5 5 5 Average Capacity 5 | 5 5 5 5 5 5 5 5 5 5 Most Carried 5 | 5 5 5 5 5 2 . 5 2 5 Average Carried 1 | 3 3 3 2 1 1 . 1 2 2 Final Capacity 5 | 5 5 5 5 5 5 5 5 5 5 Final Carried 5 | 5 2 2 3 1 . . 2 2 1 Class Distribution -------------------- 52% | Gunner 39% | Mutant 8% | Tank Dominant Class ---------------- Mutant | -10/Materials Mutant | -9/Materials Mutant | -8/Materials Tank | -7/Factory Gunner | -7/Lower Caves Gunner | -7/Lower Caves Gunner | -6/Factory Mutant | -6/Waste Mutant | -6/Factory Resources | -11 -10 -9 -8 -7 -7 -7 -6 -6 -6 ----------- Run | Yrd Mat Mat Mat Fac Low Low Fac Was Fac Matter Collected 1516 | 250 22 158 263 96 241 . 322 . 164 Remotely . | . . . . . . . . . . Salvage Created 1899 | 48 93 226 471 40 489 . 381 . 151 Parts 86 | 4 5 11 25 1 16 . 17 2 5 Haulers Intercepted . | . . . . . . . . . . Recyclers Shooed 3 | . 1 . 1 1 . . . . . Parts Field Recycled . | . . . . . . . . . . Retrieved Matter . | . . . . . . . . . . Parts Self-Destructed 10 | . . . . . 10 . . . . Prevented 6 | . . . . . 6 . . . . Kills | -11 -10 -9 -8 -7 -7 -7 -6 -6 -6 ------- Run | Yrd Mat Mat Mat Fac Low Low Fac Was Fac Combat Hostiles Destroyed 39 | 1 2 3 12 1 9 . 5 1 5 Melee 3 | . . . . . . . . 1 2 Guns 16 | 1 1 . . 1 8 . 5 . . Cannons 17 | . . 2 12 . 1 . . . 2 AOE 2 | . 1 1 . . . . . . . Classes Destroyed 11 | 1 3 2 2 1 1 . . 1 . Worker 1 | . 1 . . . . . . . . Builder 1 | . 1 . . . . . . . . Recycler 2 | . . 1 1 . . . . . . Watcher 7 | . 1 . 3 . . . 3 . . Swarmer 12 | . . . 7 . 1 . . . 4 Cutter 1 | . . . . . . . . 1 . Grunt 10 | 1 2 . 2 . 4 . . . 1 Duelist 3 | . . . . . 3 . . . . Sentry 8 | . . 3 2 . 1 . 2 . . Hunter 3 | . . . 1 . . . 2 . . Programmer 2 | . . . . 1 . . 1 . . Best Kill Streak 6 | 1 5 4 6 1 5 . 4 1 1 Combat Bots Only 5 | 1 2 3 5 1 5 . 2 1 1 Max Kills in Single Turn 2 | 1 2 2 1 1 1 . 1 1 1 Gunslinging . | . . . . . . . . . . Exploded 1 | . 1 1 . . . . . . . Melee 1 | . . . . . . . . 1 1 Uniques/NPCs Destroyed . | . . . . . . . . . . Combat | -11 -10 -9 -8 -7 -7 -7 -6 -6 -6 -------- Run | Yrd Mat Mat Mat Fac Low Low Fac Was Fac Hostile Shots Fired 332 | 4 4 22 73 4 41 . 54 6 124 Missed 109 | 1 1 12 22 1 10 . 17 2 43 Hits 223 | 3 3 10 51 3 31 . 37 4 81 Melee 6 | . . . . . 2 . . 4 . Projectile 217 | 3 3 10 51 3 29 . 37 . 81 AOE 2 | . . . . . . . . . 2 Critical Strikes 8 | . . 2 . . 2 . 1 1 2 Actively Blocked 1 | . . 1 . . . . . . . Damage Taken 3089 | 24 46 136 380 36 618 . 557 116 1176 Core 1231 | . 9 71 87 . 210 . 180 42 632 Absorbed by Shields . | . . . . . . . . . . Redirected to Shielding 20 | . . 8 9 3 . . . . . Ignored by Resistances 788 | 7 14 37 118 10 128 . 124 33 317 Core Remaining (%) 86 | 100 96 82 84 . . 70 . . . Volleys Fired 95 | 3 7 7 35 2 18 . 19 . 4 Largest 5 | 2 2 2 2 4 4 . 5 . 1 Hottest 305 | 90 70 124 105 273 273 . 305 . 85 Shots Fired 240 | 6 12 10 70 8 64 . 65 . 5 Gun 150 | 6 7 . 23 6 48 . 60 . . Cannon 85 | . . 10 47 2 16 . 5 . 5 Launcher 5 | . 5 . . . . . . . . Special . | . . . . . . . . . . Kinetic 41 | . . . 35 . . . 6 . . Thermal 151 | 3 . 7 35 6 48 . 47 . 5 Explosive 5 | . 5 . . . . . . . . Electromagnetic 43 | 3 7 3 . 2 16 . 12 . . Robot Hit Streak 17 | 4 3 12 11 8 16 . 17 . 3 Robot Miss Streak 3 | 1 2 . 3 1 3 . 3 . 2 Penetration Max . | . . . . . . . . . . Secondary Targets . | . . . . . . . . . . Shots Hit Robots 162 | 5 6 9 41 6 43 . 42 . 10 Core Hits 93 | 2 9 4 20 4 25 . 23 . 6 Critical Kills 2 | . . . 1 . . . . . 1 Critical Parts Destroyed 2 | . . . . . . . . . 2 Critical Strikes 7 | . . . 2 . 2 . . . 3 Burn 2 | . . . . . 2 . . . . Meltdown 1 | . . . 1 . . . . . . Blast 1 | . . . 1 . . . . . . Smash 3 | . . . . . . . . . 3 Melee Attacks 12 | . . . . . . . . . 12 Impact 12 | . . . . . . . . . 12 Slashing . | . . . . . . . . . . Piercing . | . . . . . . . . . . Sneak Attacks . | . . . . . . . . . . Combat Hostiles . | . . . . . . . . . . Follow-up Attacks 3 | . . . . . . . . . 3 Damage Inflicted 4040 | 65 271 286 918 168 982 . 880 7 463 Guns 2035 | 65 59 . 155 147 800 . 809 . . Cannons 1323 | . . 181 763 6 182 . 71 . 120 Explosions 311 | . 212 99 . . . . . . . Melee 337 | . . . . . . . . . 337 Ramming 34 | . . 6 . 15 . . . 7 6 Kinetic 491 | . . . 439 . . . 52 . . Thermal 2551 | 25 . 242 479 147 800 . 738 . 120 Explosive 212 | . 212 . . . . . . . . Electromagnetic 415 | 40 59 38 . 6 182 . 90 . . Impact 337 | . . . . . . . . . 337 Slashing . | . . . . . . . . . . Piercing . | . . . . . . . . . . Highest Corruption 10 | . . . . . . . 1 10 10 Average Corruption 5 | . . . . . . . 1 6 10 Corruption Purged . | . . . . . . . . . . Corruption Blocked . | . . . . . . . . . . Effects 13 | . . . . . . . 3 4 6 Message Errors 3 | . . . . . . . 1 1 1 Matter Fused 3 | . . . . . . . 2 . 1 Heat Flow Errors 1 | . . . . . . . . 1 . Parts Rejected 1 | . . . . . . . . . 1 Data Loss (minor) 1 | . . . . . . . . 1 . Misfires 1 | . . . . . . . . . 1 Misdirections 3 | . . . . . . . . 1 2 Overload Shots . | . . . . . . . . . . Overflow Damage 116 | . . . 6 . . . 1 . 109 Projectiles 7 | . . . 6 . . . 1 . . Explosions . | . . . . . . . . . . Melee 109 | . . . . . . . . . 109 Knockbacks 4 | . . . 3 . . . . . 1 Impact 1 | . . . . . . . . . 1 Kinetic 3 | . . . 3 . . . . . . Secondary . | . . . . . . . . . . Self-Inflicted Damage 47 | . 23 22 . . . . . . 2 Shots 2 | . 1 1 . . . . . . . Rammed 12 | . . 1 . 1 . . . 4 6 Targets Rammed 13 | . . 1 . 1 . . . 5 6 Kicked . | . . . . . . . . . . Crushed 1 | . . . . . . . . 1 . Highest Temperature 982 | 108 30 176 369 280 982 . 763 241 74 Average Temperature 228 | 60 15 80 140 148 415 . 254 129 39 Received Heat Transfer 870 | 18 18 81 54 . 261 . 42 . 396 Effects 77 | . . . 2 . 40 . 35 . . Shutdowns 20 | . . . 1 . 8 . 11 . . Energy Bleed 7 | . . . . . 4 . 3 . . Interference 18 | . . . . . 10 . 8 . . Matter Decay 5 | . . . . . 4 . 1 . . Short Circuit 4 | . . . . . . . 4 . . Damage (minor) 4 | . . . 1 . 3 . . . . Damage (major) 16 | . . . . . 9 . 7 . . Damage (core) 3 | . . . . . 2 . 1 . . Siege Activations . | . . . . . . . . . . Martial Activations . | . . . . . . . . . . Shielding Activations . | . . . . . . . . . . Robots Disrupted . | . . . . . . . . . . Combat Hostiles . | . . . . . . . . . . Robots Corrupted 1 | . . . . . . . . . 1 Combat Hostiles 1 | . . . . . . . . . 1 Parts Fried 1 | . . . . . . . . . 1 Impact Corruptions 6 | . . . . . . . . . 6 Robots Melted 1 | . . . 1 . . . . . . Combat Hostiles . | . . . . . . . . . . Parts Melted 15 | . . . 2 . 5 . 8 . . Heat Transferred 4972 | 74 . 309 888 261 1825 . 1467 . 148 Parts Sabotaged . | . . . . . . . . . . Parts Stolen . | . . . . . . . . . . Parts Stripped . | . . . . . . . . . . Power Chain Reactions 1 | . . 1 . . . . . . . Alert | -11 -10 -9 -8 -7 -7 -7 -6 -6 -6 ------- Run | Yrd Mat Mat Mat Fac Low Low Fac Was Fac Maximum Alert Level 1 | . . . . . . . . . 1 Low Security (%) 98 | 100 100 100 100 100 . . 100 100 84 Level 1 1 | . . . . . . . . . 15 Level 2 . | . . . . . . . . . . Level 3 . | . . . . . . . . . . Level 4 . | . . . . . . . . . . Level 5 . | . . . . . . . . . . High Security . | . . . . . . . . . . Max Security . | . . . . . . . . . . Peak Influence 221 | 20 77 103 149 75 . . 52 20 221 Initial 7 | . 5 2 7 . . . . . . Average 27 | 2 28 47 49 9 . . 7 3 72 Influence Increases 1353 | 20 87 113 348 75 195 . 164 20 331 Destroy 0b10 Robot/C 780 | 20 40 60 240 20 180 . 100 20 100 Destroy 0b10 Robot/NC 60 | . 15 5 20 . 5 . 15 . . Destroy Leader 184 | . 2 30 66 10 10 . 46 . 20 Successful Hack 1 | . . . 1 . . . . . . Disable Machine 27 | . 9 . 18 . . . . . . Anti-Garrison Action 150 | . . . . . . . . . 150 Destroy Structure 31 | . 21 3 3 . . . 3 . 1 Lose Combat Pursuer 120 | . . 15 . 45 . . . . 60 Influence Decreases 1142 | 10 90 97 371 75 195 . 164 20 120 Entered New Map 26 | . 5 5 16 . . . . . . Time Decay 1016 | 10 85 92 345 75 175 . 144 20 70 Lost Part 100 | . . . 10 . 20 . 20 . 50 Squads Dispatched 6 | . . . 2 1 . . 1 . 2 Investigation 2 | . . . 1 1 . . . . . Extermination 1 | . . . . . . . 1 . . Reinforcement 2 | . . . 1 . . . . . 1 Assault 1 | . . . . . . . . . 1 Garrison . | . . . . . . . . . . Intercept . | . . . . . . . . . . Searches Triggered . | . . . . . . . . . . Construction Impeded . | . . . . . . . . . . Haulers Reinforced 1 | . . . . . . . . . 1 Active Scanning Responses . | . . . . . . . . . . Cargo Convoy Interrupts . | . . . . . . . . . . Stealth | -11 -10 -9 -8 -7 -7 -7 -6 -6 -6 --------- Run | Yrd Mat Mat Mat Fac Low Low Fac Was Fac Distress Signals 1 | . . . . . . . . . 1 Communications Jammed . | . . . . . . . . . . Distress Signals . | . . . . . . . . . . Times Spotted 70 | 1 3 4 21 1 9 . 8 7 16 Peak Tracking Total 7 | 1 2 3 5 4 5 . 3 5 7 Tactical Retreats 5 | . . 1 . 1 . . . 1 2 Traps | -11 -10 -9 -8 -7 -7 -7 -6 -6 -6 ------- Run | Yrd Mat Mat Mat Fac Low Low Fac Was Fac Traps Triggered 8 | . 3 . 1 1 . . 3 . . Indirectly . | . . . . . . . . . . Trap Hack Attempts . | . . . . . . . . . . Triggered . | . . . . . . . . . . Disarmed . | . . . . . . . . . . Reprogrammed . | . . . . . . . . . . Reused . | . . . . . . . . . . Traps Extracted . | . . . . . . . . . . Installed . | . . . . . . . . . . Triggered . | . . . . . . . . . . Machines | -11 -10 -9 -8 -7 -7 -7 -6 -6 -6 ---------- Run | Yrd Mat Mat Mat Fac Low Low Fac Was Fac Machines Disabled 4 | . 1 . 2 . . . . . 1 Max in Single Turn 1 | . 1 . 1 . . . . . 1 Garrison Access 1 | . . . . . . . . . 1 Machines Repaired . | . . . . . . . . . . Machines Dismantled . | . . . . . . . . . . Machines Sabotaged . | . . . . . . . . . . Overloaded Fab Kills . | . . . . . . . . . . Hacking | -11 -10 -9 -8 -7 -7 -7 -6 -6 -6 --------- Run | Yrd Mat Mat Mat Fac Low Low Fac Was Fac Machines Accessed 3 | . . 2 1 . . . . . . Terminals 1 | . . 1 . . . . . . . Fabricators . | . . . . . . . . . . Repair Stations . | . . . . . . . . . . Recycling Units 1 | . . 1 . . . . . . . Scanalyzers 1 | . . . 1 . . . . . . Garrison Access . | . . . . . . . . . . Total Hacks 6 | . . 4 2 . . . . . . Successful 4 | . . 2 2 . . . . . . Failed 2 | . . 2 . . . . . . . Catastrophic . | . . . . . . . . . . Database Lockouts . | . . . . . . . . . . Manual . | . . . . . . . . . . Terminals 3 | . . 3 . . . . . . . Fabricators . | . . . . . . . . . . Repair Stations . | . . . . . . . . . . Recycling Units 1 | . . 1 . . . . . . . Scanalyzers 2 | . . . 2 . . . . . . Garrison Access . | . . . . . . . . . . Terminal Hacks 1 | . . 1 . . . . . . . Maintenance Status 1 | . . 1 . . . . . . . Fabricator Hacks . | . . . . . . . . . . Repair Station Hacks . | . . . . . . . . . . Recycling Unit Hacks 1 | . . 1 . . . . . . . Process 1 | . . 1 . . . . . . . Scanalyzer 2 | . . . 2 . . . . . . Insert Component 1 | . . . 1 . . . . . . Analyze 1 | . . . 1 . . . . . . Garrison Access Hacks . | . . . . . . . . . . Unauthorized Hacks . | . . . . . . . . . . Terminals . | . . . . . . . . . . Fabricators . | . . . . . . . . . . Repair Stations . | . . . . . . . . . . Recycling Units . | . . . . . . . . . . Scanalyzers . | . . . . . . . . . . Garrison Access . | . . . . . . . . . . Data Cores Recovered . | . . . . . . . . . . Used . | . . . . . . . . . . Hacking Detections 2 | . . 2 . . . . . . . Full Trace Events . | . . . . . . . . . . Feedback Events . | . . . . . . . . . . Feedback Blocked . | . . . . . . . . . . Robot Schematics Acquired . | . . . . . . . . . . Robots Built . | . . . . . . . . . . Authchips . | . . . . . . . . . . Time . | . . . . . . . . . . Total Robot Build Rating . | . . . . . . . . . . Part Schematics Acquired 1 | . . . 1 . . . . . . Parts Built . | . . . . . . . . . . Authchips . | . . . . . . . . . . Time . | . . . . . . . . . . Total Part Build Rating . | . . . . . . . . . . Parts Repaired . | . . . . . . . . . . Time . | . . . . . . . . . . Parts Recycled . | . . . . . . . . . . Recycled Matter 26 | . . 26 . . . . . . . Retrieved Matter . | . . . . . . . . . . Retrieved Components . | . . . . . . . . . . Parts Scanalyzed 1 | . . . 1 . . . . . . Part Schematics Acquired 1 | . . . 1 . . . . . . Parts Damaged . | . . . . . . . . . . Bothacking | -11 -10 -9 -8 -7 -7 -7 -6 -6 -6 ------------ Run | Yrd Mat Mat Mat Fac Low Low Fac Was Fac Used RIF Installer . | . . . . . . . . . . Robots Hacked . | . . . . . . . . . . Non-combat . | . . . . . . . . . . Combat . | . . . . . . . . . . Robot Hacks Applied . | . . . . . . . . . . Relay Couplers Released . | . . . . . . . . . . Fabnet Peak Effective % . | . . . . . . . . . . Robots Rewired . | . . . . . . . . . . Allies Hacked . | . . . . . . . . . . Hacks Repelled . | . . . . . . . . . . Allies | -11 -10 -9 -8 -7 -7 -7 -6 -6 -6 -------- Run | Yrd Mat Mat Mat Fac Low Low Fac Was Fac Total Allies 1 | . . . . . . . . 1 . Largest Group 1 | . . . . . . . . 1 . Highest-Rated Group 31 | . . . . . . . . 31 . Highest-Rated Ally 31 | . . . . . . . . 31 . Total Orders . | . . . . . . . . . . Ally Attacks 7 | . . . . . . . . 7 . Total Damage 151 | . . . . . . . . 151 . Kills . | . . . . . . . . . . Allies Corrupted . | . . . . . . . . . . Allies Melted . | . . . . . . . . . . Intel | -11 -10 -9 -8 -7 -7 -7 -6 -6 -6 ------- Run | Yrd Mat Mat Mat Fac Low Low Fac Was Fac Active Infowar (turns) . | . . . . . . . . . . Robot Analysis Total . | . . . . . . . . . . Derelict Logs Recovered . | . . . . . . . . . . Drone Launches . | . . . . . . . . . . Drone Recoveries . | . . . . . . . . . . Exploration | -11 -10 -9 -8 -7 -7 -7 -6 -6 -6 ------------- Run | Yrd Mat Mat Mat Fac Low Low Fac Was Fac Turns Passed 4883 | 102 226 240 838 573 1685 118 741 159 201 Spaces Moved 3147 | 80 206 209 461 356 1017 77 415 125 201 Core 287 | 25 34 . . . . . . 53 175 Treads 2487 | . . 89 461 356 1017 77 415 72 . Legs 177 | 55 122 . . . . . . . . Wheels . | . . . . . . . . . . Hover . | . . . . . . . . . . Flight 196 | . 50 120 . . . . . . 26 Fastest Speed 37 | 50 40 40 145 151 155 155 152 50 37 Average Speed 138 | 98 89 97 153 153 155 155 156 120 70 Slowest Speed 250 | 120 120 200 160 155 158 155 165 250 250 Overloaded Moves . | . . . . . . . . . . Propulsion Burnouts . | . . . . . . . . . . Robots Hopped 5 | . . 5 . . . . . . . Potential Cave-ins . | . . . . . . . . . . Cave-ins Triggered . | . . . . . . . . . . Exploration Rate (%) 32 | 6 40 23 34 12 96 17 9 76 8 Regions Visited 9 Branch Regions 2 Pre-discovered Areas . | . . . . . . . . . . Known Exits Taken . | . . . . . . . . . . Unknown Exits Taken 7 | 1 1 1 1 1 1 1 . . . Scrap Searched 2 | . . . . . 2 . . . . Spaces Dug . | . . . . . . . . . . Terrain Destroyed 34 | . 27 3 2 . . . 1 . 1 Melee . | . . . . . . . . . . Projectile 4 | . . . 2 . . . 1 . 1 AOE 30 | . 27 3 . . . . . . . Terrain Rammed . | . . . . . . . . . . Walls Destroyed . | . . . . . . . . . . Machines Disabled . | . . . . . . . . . . Actions | -11 -10 -9 -8 -7 -7 -7 -6 -6 -6 --------- Run | Yrd Mat Mat Mat Fac Low Low Fac Was Fac Total 3494 | 97 238 231 531 382 1091 76 480 129 239 Wait 80 | . 8 . 1 . 53 . 13 . 5 Move 3129 | 79 205 198 460 355 1016 76 415 124 201 Hop 5 | . . 5 . . . . . . . Pick Up 63 | 10 5 8 13 8 1 . 11 . 7 Fast Attach . | . . . . . . . . . . Attach 60 | 5 8 7 11 7 2 . 13 . 7 Detach 11 | . 2 1 3 1 . . 4 . . Swap 3 | . . 1 . . 1 . 1 . . Drop 27 | . 3 3 8 8 . . 4 . 1 Fire 95 | 3 7 7 35 2 18 . 19 . 4 Melee 8 | . . . . . . . . . 8 Ram 6 | . . . . . . . . . 6 Kick . | . . . . . . . . . . Crush 7 | . . 1 . 1 . . . 5 . Escape Stasis . | . . . . . . . . . . Rewire . | . . . . . . . . . . Trap . | . . . . . . . . . . Miscellaneous . | . . . . . . . . . . Route ------- -11/Scrapyard -10/Materials -9/Materials -8/Materials -7/Factory -7/Lower Caves -7/Lower Caves -6/Factory -6/Waste -6/Factory History --------- Turn | Location | Event 2 | -11/Scrapyard | Met Revision 17 75 | -11/Scrapyard | Discovered new exit (range 8) 103 | -11/Scrapyard | Entered Materials 301 | -10/Materials | Build established: Mutant 311 | -10/Materials | Discovered new exit (range 16) 329 | -10/Materials | Entered another Materials area 329 | -9/Materials | Evolved 2 slots: Propulsion x2 499 | -9/Materials | Discovered new exit (range 13) 569 | -9/Materials | Entered another Materials area 569 | -8/Materials | Evolved 2 slots: Power x1, Utility x1 1401 | -8/Materials | Discovered new exit (range 5) 1407 | -8/Materials | Entered Factory 1407 | -7/Factory | Evolved 2 slots: Weapon x2 1788 | -7/Factory | Build established: Tank 1960 | -7/Factory | Discovered new exit (range 13) 1980 | -7/Factory | Entered Lower Caves 1985 | -7/Lower Caves | Encountered a Warlord checkpoint 2191 | -7/Lower Caves | Build established: Gunner 3256 | -7/Lower Caves | Attracted the attention of an 0b10 outpost 3462 | -7/Lower Caves | Discovered new exit (range 9) 3665 | -7/Lower Caves | Entered another Lower Caves area 3763 | -7/Lower Caves | Discovered new exit (range 14) 3783 | -7/Lower Caves | Entered Factory 3783 | -6/Factory | Evolved 2 slots: Power x1, Weapon x1 4524 | -6/Factory | Sucked down chute 4524 | -6/Factory | Entered Waste 4525 | -6/Waste | Met a frightened Derelict 4539 | -6/Waste | EMP discharged 4582 | -6/Waste | Spotted C-40 Crusher 4591 | -6/Waste | Spotted C-40 Crusher 4592 | -6/Waste | Spotted C-40 Crusher 4625 | -6/Waste | Spotted C-40 Crusher 4630 | -6/Waste | Crushed by Compactor (1 part destroyed, 2 dropped) 4639 | -6/Waste | EMP discharged 4639 | -6/Waste | System corruption reached 10% 4641 | -6/Waste | Spotted C-40 Crusher 4650 | -6/Waste | Crushed by Compactor (1 part destroyed, 2 dropped) 4658 | -6/Waste | Crushed by Compactor (1 part destroyed, 2 dropped) 4666 | -6/Waste | Spotted C-40 Crusher 4677 | -6/Waste | Discovered new exit (range 11) 4683 | -6/Waste | Entered Factory 4689 | -6/Factory | Lost 4 parts (1p2n1u) 4742 | -6/Factory | Build established: Mutant 4786 | -6/Factory | Core integrity fell below 50% 4822 | -6/Factory | Core integrity fell below 20% 4848 | -6/Factory | Lost 5 parts (1p2n2u) 4884 | -6/Factory | Destroyed by G-50 Soldier with Heavy Laser Last Messages --------------- S-27 Virus destroyed. U-05 Engineer lays Concrete. Acquired 19 matter. U-05 Engineer lays Concrete. U-05 Engineer builds a Wall. U-05 Engineer lays Concrete. The unstable cave ceiling collapses. U-05 Engineer lays Concrete. U-05 Engineer builds a Wall. Critical hit (Burn: +37). G-50 Soldier suffers critical hit (Smash). G-50 Soldier destroyed. Acquired 67 matter. R-10 Processor collects Carbon-fiber Leg. [Achievement: First Step to Greatness] [Achievement: 5k Club] The achievement interface (ESC then open Records) offers an effective way to explore all of your earned achievements as well as seek out new goals for future runs. Map ----- +----------------------------------------------------+ | ?????????????????????????????????????????????????? | | ?????????????????????????????????????????????????? | | ?????????????????????????????????????????????????? | | ?????????????????????????????????????????????????? | | ?????????????????????????????????????????????????? | | ?????????????????????????????????????????????????? | | ????????#+##+#???????????????????????????????????? | | ????????# #???????????????????????????????????? | | ????????# #???????????????????????????????????? | | ????????# ##########??????????????????????????? | | ????????# ??????????????????????????? | | ????????# ?????????????????????????? | | ?????#### ??????????????????????????? | | ?????+ ???????????????????????????? | | ?????# ""???????????????????????????? | | ?????# """??????????????????????????? | | ?????# """ ???????????????????????? | | ?????# ?????????????????????????? | | ###### """??????????????????????????? | | """ ""???????????????????????? | | """ """ ????????????????????? | | // " ?????????????????????? | | / / "" ??????????????????????? | | / / G * ???????????????????????? | | ## = " ##################???????????????? | | # " # R @= #???????????????? | | = # """ """g "" #???????????????? | | # # """ """ g """#???????????????? | | # # """ """ S"#???????????????? | | # # + """#???????????????? | | # %# """ """ """#???????????????? | | ## # """ """ #???????????????? | | ### """ """ #???????????????? | | ??# +???????????????? | | ??# #################???????????????? | | ??# #???????????????????????????????? | | ??# ???????????????????????????????? | | ??# ???????????????????????????????? | | ??? ??????????????????????????????? | | #### ??????????????????????????????? | | " ??????????????????????????????? | | """? ??????????????????????????????? | | ???? / ???????????????????????????????? | | ""?????????????????????????????????????????? | | """????????????????????????????????????????? | | """ ""?????????????????????????????????????? | | ?????????????????????????????????????? | | """????????????????????????????????????????? | | """????????????????????????????????????????? | | """ ""?????????????????????????????????????? | +----------------------------------------------------+ Best States ------------- Heat Dissipation 75 Energy Generation 54 Energy Capacity 1130 Matter Stores 300 Matter Capacity 300 Sight Range 16 Terrain Scan Density 10 Armor Coverage 150 Resistance: KI 20 Resistance: TH 20 Resistance: EX 20 Resistance: EM 20 Resistance: I 20 Resistance: S 20 Resistance: P 20 Power Shielding 33 Weapon Cycling 30 Evasion (%) 62 Recoil Reduction 4 Offensive Hacking 10 Item Schematics ----------------- Flight Unit | -8/Materials | Scanalyzed Robot Schematics ------------------ None Fabricated ------------ Nothing Repaired ---------- Nothing Alien Tech Used ----------------- None Achievements -------------- 5k Club Crack Shot First Step to Greatness It's Just You Made in Tau Ceti IV Power Corrupts Risk Taker Serviceable Loadout System Compromised Uninvited Guest Challenges ------------ None Game ------ Seed ReactionRecyclingScanner Manual? 0 Play Time 01:20:17 Cumulative 1.3 hours Start 2025.07.07 @ 06:01:04 End 2025.07.07 @ 07:27:10 Sessions 1 Manual Loads 0 Difficulty Adventurer Special Mode None Game No. 1 Rogue 0 Adventurer 1 Explorer 0 Win Type - Total 0 Types 0/0/0/0/0/0/0/0/0/0 Lore% 0 Gallery% 3 Achievement% 3 Wizard Run 0 Options --------- Layout 1 ASCII 0 Keyboard 0 Movement Numpad Keybinds 0 Fullscreen 1 Font 24/Smallcaps Map View 50x35 Zoom Use 0% Tactical HUD 0 Map Filters NONE Filters NONE Steam 1 RUN: 704f492a-42fc-49d1-8f22-b93d921dc6f5